fUST/lending_fUST_20240430
["ID","MTS","AMOUNT","RATE_DAILY","PERIOD"]
[324927192,1714425053866,-500.0,0.00043835,30]
[324927193,1714425053875,-500.0,0.00043835,30]
[324927194,1714425053884,-500.0,0.00043835,30]
[324927195,1714425053894,-726.4,0.00043835,120]
[324927196,1714425053903,-500.0,0.00043835,30]
[324927197,1714425053913,-500.0,0.00043835,30]
[324927198,1714425053922,-151.0,0.00043835,7]
[324927199,1714425053931,-151.0,0.00043835,7]
[324927200,1714425053940,-151.0,0.00043835,7]
[324927201,1714425053950,-500.0,0.00043835,30]
[324927202,1714425053959,-544.3,0.00043835,30]
[324927203,1714425053968,-500.0,0.00043835,30]
[324927204,1714425053977,-500.0,0.00043835,30]
[324927205,1714425053987,-500.0,0.00043835,30]
[324927206,1714425053996,-500.0,0.00043835,30]
[324927207,1714425054005,-500.0,0.00043835,30]
[324927208,1714425054014,-500.0,0.00043835,30]
[324927209,1714425054023,-454.03644147,0.00043835,30]
[324927210,1714425054032,-500.0,0.00043835,30]
[324927211,1714425054041,-323.25382167,0.00043835,30]
[324927212,1714425054051,-500.40387787,0.00043835,7]
[324927213,1714425054060,-500.0,0.00043835,30]
[324927214,1714425054069,-500.0,0.00043835,30]
[324927215,1714425054078,-795.39,0.00043835,30]
[324927216,1714425054087,-575.77,0.00043835,30]
[324927217,1714425054097,-500.0,0.00043835,30]
[324927218,1714425054106,-500.12952987,0.00043835,30]
[324927219,1714425054115,-484.58487953,0.00043835,30]
[324927220,1714425054123,-500.0,0.00043835,30]
[324927221,1714425054132,-8605.79,0.00043835,30]
[324927222,1714425054141,-500.0,0.00043835,30]
[324927223,1714425054151,-584.37,0.00043835,30]
[324927224,1714425054160,-294.44300555,0.00043835,30]
[324927225,1714425054537,-746.779422,0.00042123,7]
[324927226,1714425054547,-209.57008573,0.00043835,30]
[324927227,1714425054556,-450.46881279,0.00043835,30]
[324927305,1714426042116,-2047.75242045,0.00015,2]
[324927316,1714426178249,312.89043206,0.00015,2]
[324927388,1714426237762,-160.12482,0.00016847,2]
[324927390,1714426237772,-2101.14247839,0.00016871,2]
[324927392,1714426237781,-1360.9153739,0.00016872,2]
[324927394,1714426237791,-214.2955848,0.00017775,2]
[324927396,1714426237800,-275.30726526,0.0001787,2]
[324927398,1714426237809,-312.89043206,0.0001787,2]
[324927400,1714426237819,-300.0,0.00017871,2]
[324927402,1714426237830,-59210.59185385,0.00017872,2]
[324927404,1714426237842,-538.67741492,0.00018223,2]
[324927406,1714426237851,-489.73680537,0.000189,2]
[324927408,1714426237860,-160.640399,0.00019178,2]
[324927410,1714426237869,-939.34960788,0.00019289,2]
[324927412,1714426237878,-2780.07634031,0.00019289,2]
[324927414,1714426237888,-1677.62779446,0.00019289,2]
[324927416,1714426237898,-1009.67688923,0.0001929,2]
[324927418,1714426237907,-154.78330338,0.0001929,2]
[324927420,1714426237918,-166450.89492544,0.000193,2]
[324927422,1714426237927,-2000.0,0.000199,2]
[324927424,1714426237936,-302.06128456,0.000199,2]
[324927426,1714426237945,-46231.84563045,0.0002,2]
[324927428,1714426237954,-45870.29560376,0.0002,2]
[324927430,1714426237964,-705.46917456,0.00020912,2]
[324927433,1714426237973,-551.624157,0.00022466,2]
[324927435,1714426237982,-173.253505,0.00022466,2]
[324927437,1714426237992,-489.73680537,0.000239,2]
[324927438,1714426238001,-162.5907344,0.00025377,2]
[324927441,1714426238010,-155.11008545,0.00025401,2]
[324927443,1714426238019,-153.50538082,0.00025481,2]
[324927444,1714426238029,-155.11008545,0.00025517,2]
[324927447,1714426238038,-153.93095889,0.00025825,2]
[324927448,1714426238047,-302.06128455,0.00025859,2]
[324927451,1714426238057,-150.0,0.0002588,14]
[324927452,1714426238066,-153.50538082,0.00025944,2]
[324927455,1714426238075,-155.11008545,0.00026092,2]
[324927457,1714426238084,-162.5907344,0.00026885,2]
[324927459,1714426238094,-162.5907344,0.00026907,2]
[324927461,1714426238103,-166.666666,0.00027397,2]
[324927463,1714426238113,-162.5907344,0.00027541,2]
[324927465,1714426238122,-508.83988954,0.00028,2]
[324927467,1714426238131,-504.29406395,0.00028,2]
[324927469,1714426238140,-166.666666,0.00028038,2]
[324927471,1714426238149,-162.5907344,0.00028089,2]
[324927473,1714426238158,-551.624157,0.00028493,2]
[324927475,1714426238168,-166.666666,0.00028679,2]
[324927477,1714426238177,-162.5907344,0.00028823,2]
[324927479,1714426238186,-489.73680537,0.000289,2]
[324927481,1714426238195,-1517.06011,0.000291,7]
[324927483,1714426238204,-152.77728267,0.00029118,2]
[324927484,1714426238214,-166.666666,0.00029321,2]
[324927486,1714426238223,-1000.0,0.000296,7]
[324927488,1714426238233,-166.666666,0.00029962,2]
[324927490,1714426238243,-154.78330338,0.0003,4]
[324927492,1714426238253,-154.78330338,0.0003,4]
[324927495,1714426238263,-154.78330338,0.0003,4]
[324927497,1714426238272,-267.0,0.0003,2]
[324927499,1714426238281,-1000.0,0.000301,7]
[324927501,1714426238291,-155.11008545,0.00030493,7]
[324927503,1714426238300,-153.50538082,0.00030542,7]
[324927505,1714426238308,-1000.0,0.000306,7]
[324927507,1714426238318,-166.666666,0.00030603,2]
[324927509,1714426238326,-1000.0,0.000311,7]
[324927511,1714426238336,-162.5907344,0.0003114,7]
[324927513,1714426238345,-152.77728267,0.00031274,7]
[324927515,1714426238354,-1000.0,0.000316,7]
[324927517,1714426238363,-162.5907344,0.0003176,7]
[324927519,1714426238372,-977.55062889,0.00031816,2]
[324927521,1714426238381,-153.34957969,0.00031816,2]
[324927523,1714426238390,-153.34957969,0.00031816,2]
[324927525,1714426238400,-153.34957969,0.00031816,2]
[324927527,1714426238409,-153.34957969,0.00031816,2]
[324927529,1714426238419,-302.06128455,0.00031818,2]
[324927531,1714426238428,-155.11008545,0.00031982,7]
[324927533,1714426238436,-766.51798716,0.00032,4]
[324927535,1714426238445,-153.93095889,0.00032063,7]
[324927537,1714426238454,-5000.0,0.00033,5]
[324927538,1714426238463,-267.0,0.00033,2]
[324927540,1714426238472,-267.0,0.00033,2]
[324927542,1714426238481,-153.50538082,0.00033635,7]
[324927544,1714426238491,-466.35092847,0.00034,4]
[324927546,1714426238500,-16228.24523147,0.00034,60]
[324927548,1714426238509,-162.5907344,0.00034003,7]
[324927550,1714426238518,-155.11008545,0.00034141,7]
[324927552,1714426238527,-162.5907344,0.00034351,7]
[324927554,1714426238536,-162.5907344,0.00034415,7]
[324927556,1714426238546,-224.34545947,0.0003442,7]
[324927558,1714426238554,-162.5907344,0.00034471,7]
[324927560,1714426238563,-551.624157,0.00034521,2]
[324927562,1714426238573,-162.5907344,0.00034882,7]
[324927564,1714426238582,-153.50538082,0.00034913,7]
[324927567,1714426238592,-1329.78267311,0.00035,4]
[324927569,1714426238602,-159.9713947,0.00035,30]
[324927571,1714426238611,-214.59376254,0.00035,4]
[324927573,1714426238620,-447.0489704,0.00035,10]
[324927575,1714426238629,-5914.65556104,0.00035,4]
[324927576,1714426238638,-1307.89147106,0.00035,7]
[324927579,1714426238648,-1025.00357517,0.00035,2]
[324927580,1714426238657,-12756.78468986,0.00035,4]
[324927582,1714426238668,-791.81686347,0.00035,30]
[324927584,1714426238677,-961.68740692,0.00035,30]
[324927587,1714426238687,-1626.53,0.00035615,2]
[324927589,1714426238697,-1626.53,0.00035615,2]
[324927591,1714426238706,-1626.53,0.00035615,2]
[324927593,1714426238715,-1626.53,0.00035615,2]
[324927595,1714426238724,-1626.53,0.00035615,2]
[324927597,1714426238734,-1626.53,0.00035615,2]
[324927599,1714426238743,-1626.53,0.00035615,2]
[324927601,1714426238754,-1626.53,0.00035615,2]
[324927603,1714426238764,-2354.648268,0.00035616,120]
[324927605,1714426238774,-27185.07,0.00035616,3]
[324927607,1714426238783,-42444.95,0.00035616,3]
[324927608,1714426238793,-35370.79,0.00035616,3]
[324927610,1714426238802,-2481.40740841,0.00035616,3]
[324927622,1714426238902,-26994.25259159,0.00035616,3]
[324927624,1714426238912,-162.5907344,0.00035716,7]
[324927626,1714426238922,-154.78330338,0.0003589,2]
[324927628,1714426238931,-267.0,0.00036,2]
[324927630,1714426238940,-267.0,0.00036,2]
[324927632,1714426238950,-267.0,0.00036,2]
[324927634,1714426238959,-155.11008545,0.00036086,7]
[324927636,1714426238968,-155.11008545,0.00036149,7]
[324927638,1714426238977,-153.50538082,0.00036424,7]
[324927640,1714426238987,-153.50538082,0.00036618,7]
[324927642,1714426238996,-153.50538082,0.00036717,7]
[324927644,1714426239005,-306.0,0.00036946,2]
[324927646,1714426239015,-3512.35610251,0.00037,2]
[324927648,1714426239024,-156.18617837,0.00037001,7]
[324927650,1714426239033,-153.7952465,0.00037083,2]
[324927652,1714426239042,-406.00916,0.00037083,2]
[324927654,1714426239052,-150.0,0.000375,32]
[324927656,1714426239061,-150.0,0.00037716,2]
[324927658,1714426239070,-434.54,0.00037716,2]
[324927660,1714426239079,-162.5907344,0.00037748,7]
[324927662,1714426239088,-302.06128455,0.00037776,2]
[324927664,1714426239097,-162.5907344,0.00037832,7]
[324927666,1714426239106,-203.7672836,0.00037905,2]
[324927668,1714426239115,-162.5907344,0.00038363,7]
[324927670,1714426239124,-162.5907344,0.00038458,7]
[324927672,1714426239134,-267.0,0.00039,2]
[324927674,1714426239143,-267.0,0.00039,2]
[324927676,1714426239151,-267.0,0.00039,2]
[324927678,1714426239160,-162.5907344,0.00039244,7]
[324927680,1714426239170,-162.5907344,0.00039292,7]
[324927682,1714426239179,-153.50538082,0.00039322,7]
[324927684,1714426239187,-152.77728267,0.00039654,7]
[324927686,1714426239196,-5317.07857696,0.0004,4]
[324927688,1714426239205,-1274.18730936,0.0004,2]
[324927690,1714426239214,-504.54733762,0.0004,5]
[324927691,1714426239223,-1000.0,0.0004,2]
[324927693,1714426239233,-551.624157,0.00040548,2]
[324927695,1714426239241,-162.5907344,0.00040714,30]
[324927697,1714426239250,-150.0,0.00040716,2]
[324927699,1714426239260,-417.0,0.00040716,2]
[324927701,1714426239269,-315.85749038,0.00041,2]
[324927703,1714426239278,-666.0,0.00041075,120]
[324927705,1714426239287,-666.0,0.00041075,120]
[324927707,1714426239296,-666.0,0.00041075,120]
[324927710,1714426239306,-666.0,0.00041075,120]
[324927711,1714426239315,-666.0,0.00041075,120]
[324927715,1714426239324,-666.0,0.00041075,120]
[324927718,1714426239334,-666.0,0.00041075,120]
[324927721,1714426239343,-220.87568685,0.00041075,120]
[324927724,1714426239352,-500.0,0.00041075,10]
[324927727,1714426239361,-500.0,0.00041096,31]
[324927730,1714426239370,-500.0,0.00041096,31]
[324927733,1714426239379,-650.0,0.00041096,31]
[324927736,1714426239388,-500.0,0.00041096,31]
[324927757,1714426239516,-500.0,0.00041096,31]
[324927759,1714426239525,-500.0,0.00041096,31]
[324927761,1714426239534,-162.5907344,0.00041509,30]
[324927763,1714426239543,-2354.648268,0.00041553,120]
[324927765,1714426239552,-173.253505,0.00041553,2]
[324927767,1714426239561,-162.5907344,0.0004168,30]
[324927769,1714426239569,-162.5907344,0.00041723,30]
[324927771,1714426239579,-162.5907344,0.00041866,30]
[324927773,1714426239588,-267.0,0.00042,2]
[324927775,1714426239597,-267.0,0.00042,2]
[324927777,1714426239607,-162.5907344,0.00042136,30]
[324927779,1714426239616,-162.5907344,0.00042148,30]
[324927781,1714426239625,-77720.4141919,0.00042361,90]
[324927783,1714426239635,-222.0,0.000424,16]
[324927785,1714426239644,-500.0,0.00042445,10]
[324927787,1714426239653,-162.5907344,0.00042536,30]
[324927789,1714426239663,-150.0,0.000426,39]
[324927791,1714426239672,-588.0,0.000427,30]
[324927793,1714426239681,-162.5907344,0.00042762,30]
[324927795,1714426239691,-151.13418049,0.00042833,60]
[324927797,1714426239700,-153.93095889,0.00042893,30]
[324927799,1714426239710,-16143.2088339,0.00043,7]
[324927801,1714426239719,-11492.91255134,0.00043,33]
[324927804,1714426239730,-7717.07775507,0.00043,33]
[324927806,1714426239741,-10526.84790327,0.00043,33]
[324927808,1714426239755,-1000.0,0.00043,2]
[324927810,1714426239765,-156.18617837,0.00043188,30]
[324927812,1714426239773,-162.5907346,0.0004331,30]
[324927814,1714426239782,-645.7,0.0004334,30]
[324927816,1714426239792,-300.0,0.000434,18]
[324927818,1714426239801,-1573.39747954,0.00043616,15]
[324927820,1714426239810,-150.0,0.00043716,2]
[324927822,1714426239819,-417.0,0.00043716,2]
[324927824,1714426239829,-302.06128455,0.00043735,2]
[324927826,1714426239838,-11953.77468287,0.00043735,5]
[324927844,1714426239998,-443.85842418,0.00016652,2]
[324928166,1714426242885,-5357.35789092,0.00016652,2]
[324928168,1714426242897,-715.63666265,0.00016652,2]
[324928398,1714427201148,-278.60389169,0.00016651,2]
[324928401,1714427346115,-271.95968087,0.00016651,2]
[324928402,1714427346135,-363.86320338,0.00016651,2]
[324928403,1714427347307,750.17356609,0.00016651,2]
[324928404,1714427356102,-354.49320435,0.00016651,2]
[324928901,1714427438160,-412.80292201,0.00016651,2]
[324928947,1714427442603,-17681.00340511,0.00016651,2]
[324928948,1714427442613,-280.68822047,0.00016651,2]
[324928949,1714427442622,-174.5975965,0.00017684,2]
[324928950,1714427442632,-1575.58734436,0.00017874,2]
[324928951,1714427442642,-468.70122511,0.00017874,2]
[324928952,1714427442653,-409.08052799,0.00017874,2]
[324928954,1714427442662,-24900.0,0.00017875,2]
[324928956,1714427442671,-160.12482,0.00018765,2]
[324928958,1714427442680,-768.26768042,0.0001882,2]
[324928960,1714427442689,-2625.35839845,0.00018854,2]
[324928962,1714427442700,-564.78311334,0.00018854,2]
[324928964,1714427442708,-354.44117982,0.00018855,2]
[324928966,1714427442718,-163.24560179,0.000189,2]
[324928967,1714427442727,-160.24877,0.00019178,2]
[324928970,1714427442737,-160.640399,0.00019178,2]
[324928971,1714427442748,-28272.34650532,0.0002,2]
[324928974,1714427442758,-164.95370514,0.00020813,2]
[324928976,1714427442767,-154.8915759,0.00020909,2]
[324928978,1714427442776,-154.8915759,0.00020909,2]
[324928979,1714427442785,-43410.33627526,0.00020909,2]
[324928984,1714427443202,-350.42643964,0.00020909,2]
[324929000,1714427445924,-6132.06031256,0.00020909,2]
[324929001,1714427445935,-474.91817209,0.00020911,2]
[324929002,1714427445945,-189.30063706,0.00020911,2]
[324929003,1714427445956,-272.37754829,0.00020911,2]
[324929004,1714427445965,-939.04672329,0.00020911,2]
[324929005,1714427445975,-1103.65273325,0.00020911,2]
[324929006,1714427445984,-161.97859023,0.00020911,2]
[324929007,1714427445995,-235.64384072,0.00020911,2]
[324929008,1714427446006,-603.57234398,0.00020911,2]
[324929009,1714427446017,-154.8915759,0.00020911,2]
[324929010,1714427446027,-709.89305319,0.00020911,2]
[324929011,1714427446037,-161.51116319,0.00020911,2]
[324929012,1714427446046,-207.94518351,0.00020911,2]
[324929013,1714427446054,-157.80708891,0.00020911,2]
[324929014,1714427446063,-162.06158319,0.00020911,2]
[324929015,1714427446072,-472.12357594,0.00020911,2]
[324929016,1714427446081,-241.61171692,0.00020912,2]
[324929017,1714427446091,-521.67886641,0.00020912,2]
[324929018,1714427446101,-212.12287173,0.00020912,2]
[324929019,1714427446114,-1978.34352941,0.00020912,2]
[324929024,1714428435164,-154.78330338,0.00017286,2]
[324929025,1714428435186,-300.0,0.00018197,2]
[324929026,1714428435207,-199.51290346,0.00018197,2]
[324929052,1714428632142,-234.0,0.00014728,2]
[324929054,1714428632152,-41.16174657,0.00017286,2]
[324929339,1714428643240,-118.94243469,0.00017286,2]
[324929340,1714428643251,-160.12482,0.00017462,2]
[324929341,1714428643260,-300.0,0.00018197,2]
[324929342,1714428643270,-24900.0,0.00018198,2]
[324929343,1714428643279,-1706.61506489,0.000188,2]
[324929345,1714428643304,-214.30615666,0.000188,2]
[324929367,1714428663016,206.23930448,9.999e-05,2]
[324929368,1714428669178,1091.47655963,9.999e-05,2]
[324929369,1714428701158,374.77976344,9.999e-05,2]
[324929370,1714428703991,981.56171248,9.999e-05,2]
[324929371,1714428712747,283.80616892,9.999e-05,2]
[324929372,1714428717052,475.19457976,9.999e-05,2]
[324929373,1714428720138,526.83448136,9.999e-05,2]
[324929374,1714428720177,468.88112624,9.999e-05,2]
[324929375,1714428722119,154.78330338,9.999e-05,2]
[324929376,1714428726349,1491.68295957,9.999e-05,2]
[324929377,1714428728543,324.12316638,9.999e-05,2]
[324929378,1714428731028,18545.63477786,9.999e-05,2]
[324929379,1714428742011,208.08192276,9.999e-05,2]
[324929380,1714428742230,564.97951661,9.999e-05,2]
[324929381,1714429365260,283.80616892,9.999e-05,2]
[324929383,1714429639289,-2047.75242045,0.00013321,2]
[324929386,1714429748173,-250.0,0.00012325,2]
[324929387,1714429748194,-1879.62800973,0.00013221,2]
[324929388,1714429748215,-157.79359164,0.00013222,2]
[324929389,1714429748236,-2626.30439442,0.00013319,2]
[324929390,1714429748258,-300.0,0.00013329,2]
[324929391,1714429748281,-300.0,0.00013329,2]
[324929392,1714429748302,-7873.55611444,0.0001333,2]
[324929393,1714429748324,-24900.0,0.00013331,2]
[324929394,1714429748345,-964.02618926,0.0001428,2]
[324929395,1714429748366,-420.0,0.00014613,2]
[324929396,1714429748388,-420.0,0.00014662,2]
[324929397,1714429748407,-160.12482,0.00015849,2]
[324929398,1714429748427,-579.0,0.00016128,2]
[324929399,1714429748447,-765.32940594,0.00018333,2]
[324929400,1714429748467,-964.0261892,0.00018369,2]
[324929401,1714429748488,-150.0,0.000189,2]
[324929402,1714429748509,-160.24877,0.00019178,2]
[324929403,1714429748533,-257.18,0.0001929,3]
[324929404,1714429748554,-771.54,0.0001929,3]
[324929405,1714429748576,-204.23558872,0.00019298,2]
[324929406,1714429748596,-171.21984158,0.00019298,2]
[324929407,1714429748616,-2047.75242045,0.00019298,2]
[324929408,1714429748635,-207.80844426,0.00019299,2]
[324929409,1714429748655,-537.39377229,0.00019299,2]
[324929410,1714429748675,-61838.68044415,0.000193,2]
[324929411,1714429748695,-160.539392,0.00019636,2]
[324929412,1714429748714,-514.36,0.0002066,3]
[324929413,1714429748734,-252.39380364,0.00020813,2]
[324929414,1714429748752,-155.07476335,0.0002091,2]
[324929415,1714429748772,-189.30063706,0.0002091,2]
[324929416,1714429748791,-408.47253239,0.0002091,2]
[324929417,1714429748810,-154.84515485,0.0002091,2]
[324929418,1714429748834,-603.57234398,0.0002091,2]
[324929419,1714429748855,-1575.6250749,0.0002091,2]
[324929420,1714429748875,-235.64384072,0.0002091,2]
[324929421,1714429748895,-154.84515485,0.0002091,2]
[324929422,1714429748914,-6905.40973764,0.00020911,2]
[324929423,1714429748933,-281.15904372,0.00020912,2]
[324929424,1714429748953,-1564.03593502,0.00020912,2]
[324929425,1714429748973,-3955.20467131,0.00020912,10]
[324929426,1714429748992,-165.96531035,0.00020912,2]
[324929427,1714429749012,-41028.63328287,0.00020913,2]
[324929428,1714429749032,-247.45054886,0.00020913,2]
[324929429,1714429749054,-157.79359164,0.00022366,2]
[324929430,1714429749076,-964.0261892,0.00022457,2]
[324929431,1714429749097,-298.556806,0.00022466,2]
[324929432,1714429749119,-195.77112,0.00022466,2]
[324929433,1714429749141,-190.152352,0.00022466,2]
[324929434,1714429749161,-484.612701,0.00022466,2]
[324929435,1714429749180,-252.39380363,0.00023543,2]
[324929436,1714429749203,-150.0,0.000239,2]
[324929437,1714429749223,-209.76615604,0.00025786,3]
[324929438,1714429749243,-155.11008545,0.00025941,2]
[324929439,1714429749264,-4466.12634562,0.00026,2]
[324929488,1714429832411,-3225.43365438,0.00026,2]
[324929489,1714429832421,-3955.20467131,0.00026,10]
[324929490,1714429832430,-1117.33550693,0.00026,2]
[324929535,1714429838363,-446.70042809,0.00026,2]
[324929537,1714429838373,-252.39380363,0.00026273,2]
[324929539,1714429838382,-964.0261892,0.00026546,3]
[324929541,1714429838391,-162.5907344,0.00026784,2]
[324929543,1714429838400,-162.5907344,0.00027124,2]
[324929545,1714429838409,-166.666666,0.00027397,2]
[324929547,1714429838420,-741.08087328,0.0002749,2]
[324929549,1714429838429,-3754.1809699,0.00028,3]
[324929551,1714429838438,-504.29406395,0.00028,2]
[324929553,1714429838447,-763.2598343,0.00028037,2]
[324929555,1714429838456,-166.666666,0.00028038,2]
[324929557,1714429838465,-298.556806,0.00028493,2]
[324929559,1714429838475,-195.77112,0.00028493,2]
[324929561,1714429838483,-190.152352,0.00028493,2]
[324929563,1714429838492,-484.612701,0.00028493,2]
[324929565,1714429838501,-179.193364,0.00028493,2]
[324929567,1714429838510,-179.193364,0.00028493,25]
[324929569,1714429838519,-179.193364,0.00028493,49]
[324929571,1714429838528,-179.193364,0.00028493,72]
[324929573,1714429838539,-29.66130385,0.00028493,96]
[324929706,1714429841870,-149.53206015,0.00028493,96]
[324929707,1714429841880,-179.193364,0.00028493,120]
[324929708,1714429841890,-103.50712073,0.00028679,2]
[324929746,1714429843499,-63.15954527,0.00028679,2]
[324929747,1714429843509,-442.65863885,0.00028718,2]
[324929748,1714429843519,-384.5867347,0.00028718,2]
[324929749,1714429843528,-474.76232162,0.00028719,2]
[324929750,1714429843537,-615.89461758,0.00028719,2]
[324929751,1714429843547,-154.90700632,0.00028729,2]
[324929752,1714429843556,-980.56647278,0.00028738,2]
[324929754,1714429843565,-407.88387017,0.00028739,2]
[324929755,1714429843574,-457.21723132,0.00028749,2]
[324929756,1714429843583,-2584.55126401,0.00028749,2]
[324929757,1714429843592,-1090.94033245,0.00028759,2]
[324929758,1714429843602,-42476.75,0.0002876,3]
[324929759,1714429843611,-1621.09215219,0.00028768,2]
[324929760,1714429843620,-884.2224895,0.00028768,2]
[324929761,1714429843629,-193.70470458,0.00028768,2]
[324929762,1714429843638,-154.81422293,0.00028768,2]
[324929763,1714429843648,-521.8093147,0.00028768,2]
[324929764,1714429843657,-362.18450158,0.00028768,2]
[324929765,1714429843666,-157.80708891,0.00028768,2]
[324929766,1714429843676,-718.33821317,0.00028768,2]
[324929767,1714429843685,-1202.53293628,0.00028768,2]
[324929768,1714429843694,-206.05088003,0.00028768,2]
[324929769,1714429843704,-154.84515485,0.00028768,2]
[324929770,1714429843713,-308.5768874,0.00028768,2]
[324929771,1714429843723,-1877.98244555,0.00028768,2]
[324929772,1714429843732,-2629.92511565,0.00028768,2]
[324929773,1714429843741,-4798.86627363,0.00028768,2]
[324929774,1714429843750,-154.84515485,0.00028769,2]
[324929775,1714429843759,-4176.47807233,0.00028769,2]
[324929776,1714429843770,-127190.66315456,0.0002877,2]
[324929777,1714429843780,-162.5907344,0.00028924,2]
[324929778,1714429843791,-252.39380363,0.00029002,2]
[324929779,1714429843800,-1517.06011,0.000291,7]
[324929780,1714429843809,-166.666666,0.00029321,2]
[324929781,1714429843818,-152.77728267,0.00029371,2]
[324929782,1714429843827,-150.77383924,0.00029556,2]
[324929783,1714429843837,-250.11570644,0.00029556,2]
[324929784,1714429843849,-1000.0,0.000296,7]
[324929785,1714429843859,-44444.0,0.000298,3]
[324929786,1714429843868,-151.0,0.000298,2]
[324929787,1714429843877,-151.0,0.000298,2]
[324929788,1714429843887,-499.226717,0.000298,2]
[324929789,1714429843898,-499.226717,0.000298,2]
[324929790,1714429843907,-151.0,0.000298,2]
[324929791,1714429843916,-151.0,0.000298,2]
[324929792,1714429843925,-151.0,0.000298,2]
[324929793,1714429843935,-151.0,0.000298,2]
[324929794,1714429843945,-345.4731,0.000298,2]
[324929795,1714429843955,-345.4731,0.000298,2]
[324929796,1714429843964,-151.0,0.000298,2]
[324929797,1714429843974,-151.0,0.000298,2]
[324929798,1714429843983,-2350.127199,0.000298,2]
[324929799,1714429843993,-2350.127199,0.000298,2]
[324929800,1714429844003,-177265.21522309,0.000299,2]
[324929801,1714429844013,-151.0,0.000299,2]
[324929802,1714429844023,-207.203829,0.000299,2]
[324929803,1714429844033,-151.0,0.000299,2]
[324929804,1714429844044,-207.203829,0.000299,2]
[324929805,1714429844054,-151.0,0.000299,2]
[324929806,1714429844062,-151.0,0.000299,2]
[324929807,1714429844072,-151.0,0.000299,2]
[324929808,1714429844081,-151.0,0.000299,2]
[324929809,1714429844091,-288.33413,0.000299,2]
[324929810,1714429844100,-288.33413,0.000299,2]
[324929811,1714429844109,-151.0,0.000299,2]
[324929812,1714429844119,-151.0,0.000299,2]
[324929813,1714429844128,-151.0,0.000299,2]
[324929814,1714429844137,-151.0,0.000299,2]
[324929815,1714429844147,-151.0,0.000299,2]
[324929816,1714429844156,-151.0,0.000299,2]
[324929817,1714429844165,-746.779422,0.000299,2]
[324929818,1714429844175,-151.0,0.000299,2]
[324929819,1714429844184,-746.779422,0.000299,2]
[324929820,1714429844193,-151.0,0.000299,2]
[324929821,1714429844203,-262.278445,0.000299,2]
[324929822,1714429844212,-262.278445,0.000299,2]
[324929823,1714429844221,-499.226717,0.000299,2]
[324929824,1714429844230,-499.226717,0.000299,2]
[324929825,1714429844239,-151.0,0.000299,2]
[324929826,1714429844248,-151.0,0.000299,2]
[324929827,1714429844257,-151.0,0.000299,2]
[324929828,1714429844267,-151.0,0.000299,2]
[324929829,1714429844276,-345.4731,0.000299,2]
[324929830,1714429844285,-345.4731,0.000299,2]
[324929831,1714429844296,-151.0,0.000299,2]
[324929832,1714429844305,-151.0,0.000299,2]
[324929833,1714429844315,-151.0,0.000299,2]
[324929834,1714429844323,-151.0,0.000299,2]
[324929835,1714429844332,-151.0,0.000299,2]
[324929836,1714429844341,-151.0,0.000299,2]
[324929837,1714429844351,-151.0,0.000299,2]
[324929838,1714429844360,-269.290335,0.000299,2]
[324929839,1714429844369,-269.290335,0.000299,2]
[324929840,1714429844378,-180.368819,0.000299,2]
[324929841,1714429844387,-180.368819,0.000299,2]
[324929842,1714429844397,-151.0,0.000299,2]
[324929843,1714429844406,-826.351449,0.000299,2]
[324929844,1714429844415,-826.351449,0.000299,2]
[324929845,1714429844424,-151.0,0.000299,2]
[324929846,1714429844434,-2350.127199,0.000299,2]
[324929847,1714429844443,-2350.127199,0.000299,2]
[324929848,1714429844452,-151.0,0.000299,2]
[324929849,1714429844463,-245.971055,0.000299,2]
[324929850,1714429844473,-245.971055,0.000299,2]